Cogmind - Beta 15 --- EXPLORER MODE // 2025.06.23 @ 21:09:08 Player: Alrafir Result: Destroyed by H2-IP6(j) with Overtuned Pulse Rifle Performance ------------- Evolutions (0) 0 Regions Visited (5) 1000 Robots Destroyed (35) 175 Value Destroyed (1205) 1205 Prototype IDs (17) 340 Alien Tech Used (0) 0 Bonus (796) 796 TOTAL SCORE: 3516 Bonus ------- Registered with UFD 300 Met Optimus in HQ 500 Friendly Fire -4 Cogmind --------- Core Integrity 0/250 Matter 300/300 Energy 290/290 System Corruption 1% Temperature Cool (17) Movement Walking (100) Location -7/Scraptown Parts ------- > --- POWER (1) -------- Improved Deuterium Engine > --- PROPULSION (2) --- Overtuned Titanium Leg Overtuned Titanium Leg > --- UTILITY (3) ------ Scrap Suit Makeshift Light Armor Plating > --- WEAPON (2) ------- Advanced Assault Cannon Companion Sword > --- INVENTORY (5) ---- Flightbrick Heavy Missile Launcher Peak State ------------ > --- POWER ------------ Improved Deuterium Engine > --- PROPULSION ------- Overtuned Titanium Leg Overtuned Titanium Leg > --- UTILITY ---------- Scrap Suit Makeshift Light Armor Plating > --- WEAPON ----------- Advanced Assault Cannon Companion Sword > --- INVENTORY -------- Flightbrick Heavy Missile Launcher [Rating: 36] Favorites ----------- Power Improved Deuterium Engine Engine Improved Deuterium Engine Power Core Light Nuclear Core Propulsion Aluminum Leg Leg Aluminum Leg Wheel Subdweller Monowheel Utility Medium Storage Unit Device Scrap Suit Storage Medium Storage Unit Protection Utility Shielding Weapon Advanced Assault Cannon Ballistic Gun Assault Rifle Ballistic Cannon Advanced Assault Cannon Launcher Rocket Launcher Slashing Weapon Companion Sword Build | -11 -10 -10 -10 -7 -7 ------- Run | Yrd Mat Min Sub Rec Scr Slots Evolved 1 | . 1 . . . . Power . | . . . . . . Propulsion . | . . . . . . Utility 1 | . 1 . . . . Weapon . | . . . . . . Parts Attached 37 | 6 6 1 8 6 10 Power 5 | . 2 . . 2 1 Engine 3 | . 1 . . 2 . Core 2 | . 1 . . . 1 Reactor . | . . . . . . Propulsion 12 | 2 1 . 5 2 2 Treads . | . . . . . . Leg 10 | 2 1 . 3 2 2 Wheel 2 | . . . 2 . . Hover . | . . . . . . Flight . | . . . . . . Utility 7 | 2 1 . . . 4 Device 2 | . . . . . 2 Storage 1 | . 1 . . . . Processor . | . . . . . . Hackware . | . . . . . . Protection 4 | 2 . . . . 2 Artifact . | . . . . . . Weapon 13 | 2 2 1 3 2 3 Energy Gun . | . . . . . . Energy Cannon . | . . . . . . Ballistic Gun 2 | 2 . . . . . Ballistic Cannon 8 | . 2 1 2 2 1 Launcher 2 | . . . 1 . 1 Special Weapon . | . . . . . . Impact Weapon . | . . . . . . Slashing Weapon 1 | . . . . . 1 Piercing Weapon . | . . . . . . Special Melee Weapon . | . . . . . . Unidentified Prototypes 1 | . . . . . 1 Parts Lost 5 | . . . 4 1 . Power 1 | . . . 1 . . Propulsion 2 | . . . 2 . . Utility . | . . . . . . Weapon 2 | . . . 1 1 . Highest Loss Streak 2 | . . . 2 1 . To Critical Strikes . | . . . . . . Average Backups 6 | . 2 7 7 6 6 Power . | . . 1 . . . Propulsion 1 | . . 2 1 1 1 Utility 1 | . 1 2 1 2 2 Weapon 2 | . 1 2 3 3 3 Tool/Special . | . . . . . . Unused Backups 5 | . . . 1 1 3 Power 1 | . . . . 1 . Propulsion 1 | . . . . . 1 Utility 3 | . . . 1 . 2 Weapon . | . . . . . . Tool/Special . | . . . . . . Average Slot Usage (%) 98 | . 95 100 98 100 98 Engine 10 | . 10 . 10 12 12 Core 1 | . . 12 1 . . Leg 23 | . 24 25 17 25 25 Wheel 1 | . . . 6 . . Storage 11 | . 10 12 12 12 11 Protection 23 | . 24 25 25 25 22 Ballistic Gun 1 | . 9 6 . 1 . Ballistic Cannon 21 | . 14 18 23 23 22 Peak Build Rating 36 | 6 11 11 17 28 36 Average Rating 20 | 4 9 11 13 22 27 On Entrance 11 | . 6 11 11 16 27 Naked Turns . | . . . . . . Heaviest Build 35 | 5 25 24 24 34 35 Greatest Support 40 | 20 20 20 40 32 38 Greatest Overweight (x) 3 | . 3 1 1 1 1 Average Overweight (x) . | . . 1 . . . Largest Inventory Capacity 10 | 5 10 10 10 10 10 Average Capacity 9 | 5 9 10 10 10 9 Most Carried 10 | 5 10 8 10 10 10 Average Carried 8 | . 2 7 9 9 9 Final Capacity 10 | 5 10 10 10 10 5 Final Carried 10 | . 6 8 9 10 5 Class Distribution -------------------- 95% | Hacker-Mutant 4% | Hacker-Scrapper Dominant Class ---------------- Hacker-Mutant | -10/Materials Hacker-Mutant | -10/Mines Hacker-Mutant | -10/Subcaves Hacker-Mutant | -7/Recycling Hacker-Mutant | -7/Scraptown Resources | -11 -10 -10 -10 -7 -7 ----------- Run | Yrd Mat Min Sub Rec Scr Matter Collected 2071 | 88 427 261 604 310 381 Remotely . | . . . . . . Salvage Created 846 | . 179 53 349 134 131 Parts 64 | . 16 2 28 6 12 Haulers Intercepted . | . . . . . . Recyclers Shooed . | . . . . . . Parts Field Recycled . | . . . . . . Retrieved Matter . | . . . . . . Parts Self-Destructed . | . . . . . . Prevented . | . . . . . . Kills | -11 -10 -10 -10 -7 -7 ------- Run | Yrd Mat Min Sub Rec Scr Combat Hostiles Destroyed 30 | . 6 2 15 5 2 Melee 1 | . . . . . 1 Cannons 29 | . 6 2 15 5 1 Classes Destroyed 10 | . 4 1 2 1 2 Worker 1 | . 1 . . . . Turret 1 | . . . 1 . . Watcher 3 | . 3 . . . . Swarmer 7 | . 2 . 4 1 . Grunt 8 | . 4 1 3 . . Sentry 3 | . . 1 . 2 . Programmer 2 | . . . . 2 . Subdweller 8 | . . . 8 . . Guru 1 | . . . . . 1 Scrapper 1 | . . . . . 1 Best Kill Streak 5 | . 3 1 5 3 1 Combat Bots Only 4 | . 2 1 4 3 1 Max Kills in Single Turn 1 | . 1 1 1 1 1 Gunslinging . | . . . . . . Exploded . | . . . . . . Melee 1 | . . . . . 1 Uniques/NPCs Destroyed . | . . . . . . Combat | -11 -10 -10 -10 -7 -7 -------- Run | Yrd Mat Min Sub Rec Scr Hostile Shots Fired 261 | . 17 11 112 105 16 Missed 92 | . 8 3 36 42 3 Hits 169 | . 9 8 76 63 13 Melee 1 | . . . . . 1 Projectile 168 | . 9 8 76 63 12 Critical Strikes 4 | . . . 1 2 1 Actively Blocked 1 | . . . 1 . . Damage Taken 1334 | . 75 74 656 366 163 Core 256 | . 15 8 129 53 51 Absorbed by Shields . | . . . . . . Redirected to Shielding 44 | . 3 1 30 10 . Ignored by Resistances 836 | . 46 45 397 247 101 Regen/Repaired (Parts) 57 | . 41 . . . 16 Core Remaining (%) 100 | 100 . . . . . Volleys Fired 106 | . 20 7 47 18 14 Largest 2 | . 2 2 2 2 1 Hottest 66 | . 66 63 66 63 40 Shots Fired 193 | . 40 14 90 35 14 Gun 14 | . 9 3 . 2 . Cannon 162 | . 31 11 85 33 2 Launcher 17 | . . . 5 . 12 Special . | . . . . . . Kinetic 176 | . 40 14 85 35 2 Thermal . | . . . . . . Explosive 17 | . . . 5 . 12 Electromagnetic . | . . . . . . Robot Hit Streak 38 | . 12 15 38 10 5 Robot Miss Streak 3 | . 2 1 1 3 . Penetration Max . | . . . . . . Secondary Targets . | . . . . . . Shots Hit Robots 129 | . 29 11 62 25 2 Core Hits 53 | . 14 3 23 8 5 Critical Kills . | . . . . . . Critical Parts Destroyed . | . . . . . . Critical Strikes 12 | . 1 2 5 4 . Blast 12 | . 1 2 5 4 . Melee Attacks 1 | . . . . . 1 Impact . | . . . . . . Slashing 1 | . . . . . 1 Piercing . | . . . . . . Sneak Attacks . | . . . . . . Combat Hostiles . | . . . . . . Follow-up Attacks . | . . . . . . Damage Inflicted 2735 | . 524 210 1195 574 232 Guns 143 | . 88 28 . 27 . Cannons 2384 | . 436 182 1191 547 28 Explosions 178 | . . . 4 . 174 Melee 30 | . . . . . 30 Ramming . | . . . . . . Kinetic 2527 | . 524 210 1191 574 28 Thermal . | . . . . . . Explosive 178 | . . . 4 . 174 Electromagnetic . | . . . . . . Impact . | . . . . . . Slashing 30 | . . . . . 30 Piercing . | . . . . . . Highest Corruption 3 | . . . . 3 3 Average Corruption 1 | . . . . 2 1 Corruption Purged 2 | . . . . . 2 Corruption Blocked . | . . . . . . Effects 50 | . . . . 13 37 Message Errors 12 | . . . . 4 8 Matter Fused 14 | . . . . 3 11 Heat Flow Errors 6 | . . . . 1 5 Energy Discharges 10 | . . . . 4 6 Parts Fused 2 | . . . . 1 1 Data Loss (minor) 5 | . . . . . 5 Data Loss (major) 1 | . . . . . 1 Overload Shots . | . . . . . . Overflow Damage 53 | . . . 12 41 . Projectiles 53 | . . . 12 41 . Explosions . | . . . . . . Melee . | . . . . . . Knockbacks 29 | . 9 1 19 . . Impact . | . . . . . . Kinetic 25 | . 7 1 17 . . Secondary 4 | . 2 . 2 . . Self-Inflicted Damage 73 | . . . 49 . 24 Shots 5 | . . . 3 . 2 Rammed . | . . . . . . Targets Rammed . | . . . . . . Kicked . | . . . . . . Crushed . | . . . . . . Highest Temperature 276 | . 75 72 2 276 272 Average Temperature 54 | . 20 26 1 58 76 Received Heat Transfer 610 | . 57 60 276 120 97 Siege Activations . | . . . . . . Martial Activations . | . . . . . . Shielding Activations . | . . . . . . Robots Disrupted . | . . . . . . Combat Hostiles . | . . . . . . Robots Corrupted . | . . . . . . Combat Hostiles . | . . . . . . Parts Fried . | . . . . . . Impact Corruptions . | . . . . . . Robots Melted . | . . . . . . Combat Hostiles . | . . . . . . Parts Melted 1 | . . 1 . . . Heat Transferred . | . . . . . . Parts Sabotaged . | . . . . . . Parts Stolen . | . . . . . . Parts Stripped . | . . . . . . Power Chain Reactions . | . . . . . . Alert | -11 -10 -10 -10 -7 -7 ------- Run | Yrd Mat Min Sub Rec Scr Maximum Alert Level . | . . . . . . Low Security (%) 100 | 100 100 100 . 100 . Level 1 . | . . . . . . Level 2 . | . . . . . . Level 3 . | . . . . . . Level 4 . | . . . . . . Level 5 . | . . . . . . High Security . | . . . . . . Max Security . | . . . . . . Peak Influence 51 | . 51 31 . 38 . Initial 5 | . . . . 5 . Average 3 | . 5 1 . 3 . Influence Increases 682 | . 208 51 300 113 10 Destroy 0b10 Robot/C 420 | . 120 40 160 100 . Destroy 0b10 Robot/NC 35 | . 20 . . 5 10 Destroy Leader 66 | . 36 10 20 . . Successful Hack 24 | . 19 . . 5 . Disable Machine 8 | . 8 . . . . Destroy Structure 9 | . 5 1 . 3 . Lose Combat Pursuer 120 | . . . 120 . . Influence Decreases 682 | . 208 51 285 128 10 Entered New Map 10 | . . . . 10 . Time Decay 656 | . 202 51 275 118 10 Lost Part 10 | . . . 10 . . Purge Threat 6 | . 6 . . . . Squads Dispatched . | . . . . . . Investigation . | . . . . . . Extermination . | . . . . . . Reinforcement . | . . . . . . Assault . | . . . . . . Garrison . | . . . . . . Intercept . | . . . . . . Searches Triggered . | . . . . . . Construction Impeded . | . . . . . . Haulers Reinforced . | . . . . . . Active Scanning Responses . | . . . . . . Cargo Convoy Interrupts . | . . . . . . Stealth | -11 -10 -10 -10 -7 -7 --------- Run | Yrd Mat Min Sub Rec Scr Distress Signals . | . . . . . . Communications Jammed . | . . . . . . Distress Signals . | . . . . . . Times Spotted 46 | . 10 3 24 4 5 Peak Tracking Total 6 | . 3 2 6 2 3 Tactical Retreats 6 | . . . 6 . . Traps | -11 -10 -10 -10 -7 -7 ------- Run | Yrd Mat Min Sub Rec Scr Traps Triggered 7 | . 6 . 1 . . Indirectly . | . . . . . . Trap Hack Attempts . | . . . . . . Triggered . | . . . . . . Disarmed . | . . . . . . Reprogrammed . | . . . . . . Reused . | . . . . . . Traps Extracted . | . . . . . . Installed . | . . . . . . Triggered . | . . . . . . Machines | -11 -10 -10 -10 -7 -7 ---------- Run | Yrd Mat Min Sub Rec Scr Machines Disabled 5 | . 2 . 3 . . Max in Single Turn 1 | . 1 . 1 . . Machines Repaired . | . . . . . . Machines Dismantled . | . . . . . . Machines Sabotaged . | . . . . . . Overloaded Fab Kills . | . . . . . . Hacking | -11 -10 -10 -10 -7 -7 --------- Run | Yrd Mat Min Sub Rec Scr Machines Accessed 21 | . 7 . 1 4 9 Terminals 8 | . 6 . . 2 . Fabricators . | . . . . . . Repair Stations 1 | . 1 . . . . Recycling Units . | . . . . . . Scanalyzers . | . . . . . . Garrison Access . | . . . . . . Total Hacks 108 | . 21 . 9 27 51 Successful 97 | . 12 . 9 25 51 Failed 11 | . 9 . . 2 . Catastrophic 2 | . . . . 2 . Database Lockouts . | . . . . . . Manual 12 | . 6 . 3 2 1 Terminals 22 | . 19 . . 3 . Fabricators . | . . . . . . Repair Stations 2 | . 2 . . . . Recycling Units . | . . . . . . Scanalyzers . | . . . . . . Garrison Access . | . . . . . . Terminal Hacks 95 | . 10 . 9 25 51 Record 83 | . 1 . 8 24 50 Prototype ID Bank 2 | . 2 . . . . Open Door 1 | . . . . . 1 Branch Access Points 2 | . 1 . . 1 . Alert Level 2 | . 2 . . . . Unreport Threat 1 | . 1 . . . . Locate Traps 1 | . 1 . . . . Dispatch Records 1 | . 1 . . . . Zone Layout 1 | . 1 . . . . Proto ID Catalog 1 | . . . 1 . . Fabricator Hacks . | . . . . . . Repair Station Hacks 2 | . 2 . . . . Scan Component 1 | . 1 . . . . Repair 1 | . 1 . . . . Recycling Unit Hacks . | . . . . . . Scanalyzer . | . . . . . . Garrison Access Hacks . | . . . . . . Unauthorized Hacks . | . . . . . . Terminals . | . . . . . . Fabricators . | . . . . . . Repair Stations . | . . . . . . Recycling Units . | . . . . . . Scanalyzers . | . . . . . . Garrison Access . | . . . . . . Data Cores Recovered . | . . . . . . Used . | . . . . . . Hacking Detections 7 | . 5 . . 2 . Full Trace Events . | . . . . . . Feedback Events . | . . . . . . Feedback Blocked . | . . . . . . Robot Schematics Acquired . | . . . . . . Robots Built . | . . . . . . Authchips . | . . . . . . Time . | . . . . . . Total Robot Build Rating . | . . . . . . Part Schematics Acquired . | . . . . . . Parts Built . | . . . . . . Authchips . | . . . . . . Time . | . . . . . . Total Part Build Rating . | . . . . . . Parts Repaired 1 | . 1 . . . . Time 26 | . 26 . . . . Parts Recycled . | . . . . . . Recycled Matter . | . . . . . . Retrieved Matter . | . . . . . . Retrieved Components . | . . . . . . Parts Scanalyzed . | . . . . . . Part Schematics Acquired . | . . . . . . Parts Damaged . | . . . . . . Bothacking | -11 -10 -10 -10 -7 -7 ------------ Run | Yrd Mat Min Sub Rec Scr Used RIF Installer . | . . . . . . Robots Hacked . | . . . . . . Non-combat . | . . . . . . Combat . | . . . . . . Robot Hacks Applied . | . . . . . . Relay Couplers Released . | . . . . . . Fabnet Peak Effective % . | . . . . . . Robots Rewired . | . . . . . . Allies Hacked . | . . . . . . Hacks Repelled . | . . . . . . Allies | -11 -10 -10 -10 -7 -7 -------- Run | Yrd Mat Min Sub Rec Scr Total Allies . | . . . . . . Largest Group . | . . . . . . Highest-Rated Group . | . . . . . . Highest-Rated Ally . | . . . . . . Total Orders . | . . . . . . Ally Attacks . | . . . . . . Total Damage . | . . . . . . Kills . | . . . . . . Allies Corrupted . | . . . . . . Allies Melted 7 | . . . . . 7 Intel | -11 -10 -10 -10 -7 -7 ------- Run | Yrd Mat Min Sub Rec Scr Active Infowar (turns) . | . . . . . . Robot Analysis Total . | . . . . . . Derelict Logs Recovered 2 | . . 1 1 . . Drone Launches . | . . . . . . Drone Recoveries . | . . . . . . Exploration | -11 -10 -10 -10 -7 -7 ------------- Run | Yrd Mat Min Sub Rec Scr Turns Passed 7497 | 63 1069 464 1719 717 3465 Spaces Moved 4008 | 35 510 217 1021 379 1846 Core 16 | 8 8 . . . . Treads . | . . . . . . Legs 3624 | 27 502 217 653 379 1846 Wheels 368 | . . . 368 . . Hover . | . . . . . . Flight . | . . . . . . Fastest Speed 50 | 50 120 190 110 130 100 Average Speed 171 | 104 178 190 150 156 182 Slowest Speed 210 | 120 200 190 210 210 190 Overloaded Moves . | . . . . . . Propulsion Burnouts . | . . . . . . Robots Hopped . | . . . . . . Potential Cave-ins 21 | . . . . . 21 Cave-ins Triggered . | . . . . . . Exploration Rate (%) 64 | 4 85 68 72 67 92 Regions Visited 5 Branch Regions 4 Pre-discovered Areas 2 | . . 1 1 . . Known Exits Taken 5 | 1 1 1 1 1 . Unknown Exits Taken . | . . . . . . Scrap Searched 3 | . . 1 . . 2 Spaces Dug 212 | . . . 18 . 194 Terrain Destroyed 228 | . 2 1 28 3 194 Melee . | . . . . . . Projectile 7 | . 2 1 1 3 . AOE 221 | . . . 27 . 194 Terrain Rammed . | . . . . . . Walls Destroyed . | . . . . . . Machines Disabled . | . . . . . . Actions | -11 -10 -10 -10 -7 -7 --------- Run | Yrd Mat Min Sub Rec Scr Total 4449 | 61 630 255 1109 471 1923 Wait 197 | 15 58 29 12 49 34 Move 4003 | 34 509 216 1020 378 1846 Hop . | . . . . . . Pick Up 52 | 6 20 2 7 9 8 Fast Attach 4 | . . . 1 3 . Attach 34 | 6 18 . 6 1 3 Detach 4 | . 4 . . . . Swap 24 | . 1 1 10 3 9 Drop 24 | . . . 6 10 8 Fire 106 | . 20 7 47 18 14 Melee 1 | . . . . . 1 Ram . | . . . . . . Kick . | . . . . . . Crush . | . . . . . . Escape Stasis . | . . . . . . Rewire . | . . . . . . Trap . | . . . . . . Miscellaneous . | . . . . . . Route ------- -11/Scrapyard -10/Materials (discovered 4 exits: *Mat x2 / *Min x2) -10/Mines (discovered 2 exits: *Mat / *Sub) -10/Subcaves (discovered 3 exits: *Mat x2 / *Rec) -7/Recycling -7/Scraptown (discovered 2 exits: *Fac x2) History --------- Turn | Location | Event 9 | -11/Scrapyard | Identified exit to Materials 9 | -11/Scrapyard | Discovered exit to Materials (range 16) 64 | -11/Scrapyard | Entered Materials 64 | -10/Materials | Evolved 1 slot: Utility x1 241 | -10/Materials | Identified exit to Mines 241 | -10/Materials | Discovered exit to Mines (range 12) 314 | -10/Materials | Build established: Hacker-Mutant 510 | -10/Materials | Identified exit to Materials 510 | -10/Materials | Discovered exit to Materials (range 15) 596 | -10/Materials | Repaired Aluminum Leg 859 | -10/Materials | Discovered exit to Materials (range 15) 1133 | -10/Materials | Entered Mines 1140 | -10/Mines | Received a Rocket Launcher from a helpful Derelict 1160 | -10/Mines | Met a Derelict bent on vengeance 1339 | -10/Mines | Joined a pair of Derelicts in attacking an 0b10 outpost 1402 | -10/Mines | Discovered exit to Materials (range 5) 1567 | -10/Mines | Identified exit to Subcaves 1567 | -10/Mines | Discovered exit to Subcaves (range 7) 1576 | -10/Mines | Learned location of Zion (-7) 1597 | -10/Mines | Entered Subcaves 1598 | -10/Subcaves | Approached by a straggling Scientist 1601 | -10/Subcaves | Identified exit to Materials 1601 | -10/Subcaves | Discovered exit to Materials (range 12) 1605 | -10/Subcaves | Met a Zionite searching for "candidates" 1633 | -10/Subcaves | Shifting Twisted Machinery released Battle Cannon 1637 | -10/Subcaves | Shifting Twisted Machinery released Scrap Shield 1772 | -10/Subcaves | Identified exit to Recycling 1772 | -10/Subcaves | Discovered exit to Recycling (range 14) 1950 | -10/Subcaves | Disturbed a concealed Subdweller 2129 | -10/Subcaves | Visited 4L-MR0's lab 2156 | -10/Subcaves | Found Flightbrick 2753 | -10/Subcaves | Learned Materials trap positions 2760 | -10/Subcaves | Shifting Twisted Machinery released Sub. Power Source 2851 | -10/Subcaves | A swath of the cavern ceiling suddenly collapsed 2937 | -10/Subcaves | Core integrity fell below 50% 3050 | -10/Subcaves | Discovered exit to Materials (range 7) 3213 | -10/Subcaves | A swath of the cavern ceiling suddenly collapsed 3316 | -10/Subcaves | Entered Recycling 3317 | -7/Recycling | Met a Zionite searching for Scraptown 3597 | -7/Recycling | Core integrity fell below 20% 3955 | -7/Recycling | Scanned before Scraplab entrance 3982 | -7/Recycling | Entered Scraplab 3997 | -7/Recycling | Identified exit to Scraptown 3997 | -7/Recycling | Discovered exit to Scraptown (range 3) 4033 | -7/Recycling | Entered Scraptown 4313 | -7/Scraptown | Heard Great Nut preacher, LISTEN AND RECITE! 4583 | -7/Scraptown | Identified exit to Factory 4583 | -7/Scraptown | Discovered exit to Factory (range 9) 4888 | -7/Scraptown | Visited Assassins FH 4949 | -7/Scraptown | Visited IN-MT5's Study 4987 | -7/Scraptown | Visited TADAMA 5084 | -7/Scraptown | Visited UFD Registry 5086 | -7/Scraptown | Registered with UFD as "Nulltube" 5133 | -7/Scraptown | Visited Awakened 5190 | -7/Scraptown | Visited The Evicted 5253 | -7/Scraptown | Visited Cyclists 5272 | -7/Scraptown | Entered Cyclist Reading Room 5766 | -7/Scraptown | Visited Cartography Club 6038 | -7/Scraptown | Visited Curators Association 6305 | -7/Scraptown | Visited Sword Containment 6405 | -7/Scraptown | Visited Science Testing Area 6588 | -7/Scraptown | Discovered exit to Factory (range 5) 6654 | -7/Scraptown | Visited Junk Repository 6717 | -7/Scraptown | Visited Supply Room 6772 | -7/Scraptown | Met Optimus 6772 | -7/Scraptown | Accepted into 0bPrime 6912 | -7/Scraptown | Visited Scrap Suit Storage 6940 | -7/Scraptown | Found Scrap Suit 7006 | -7/Scraptown | Civil war broke out across Scraptown 7292 | -7/Scraptown | Optimus destroyed in the chaos of civil war 7450 | -7/Scraptown | Visited LU-1G1's Boring Crew 7482 | -7/Scraptown | Build established: Hacker-Scrapper 7486 | -7/Scraptown | Visited Scrapoid Pod Storage 7498 | -7/Scraptown | Destroyed by H2-IP6(j) with Overtuned Pulse Rifle Last Messages --------------- 07469_ Acquired 9 matter. Companion Sword: "I'm not really a sword, you know. I just look, attack, and talk like one." 07480_ 96-OGZ(j) cannibalizes Ovr. Pulse Rifle to repair Ovr. Pulse Rifle. 07482_ H2-IP6(j) cannibalizes Imp. Deuterium Engine to repair Lgt. Deuterium Engine. 07484_ 96-OGZ(j) heat short circuits Ovr. Pulse Rifle. 07484_ Acquired Mak. Light Armor Plating. 07486_ 96-OGZ(j) cannibalizes Ovr. Pulse Rifle to repair Broken Ovr. Pulse Rifle. 07486_ Acquired 10 matter. 07487_ ZW-LWU(g) heat damages Imp. Heat Sink, Aluminum Leg, Ion Engine, Aluminum Leg. 07487_ ZW-LWU(g) critical meltdown. 07490_ F0-13C(E) destroyed. 07492_ 3H-YNA(b) destroyed. 07497_ H2-IP6(j) cannibalizes Ovr. Titanium Leg to repair Ovr. Titanium Leg. Map ----- +----------------------------------------------------+ | ??????#" "## | | ??#####" | | ??#"""" """""""""""""""""""""""""""" "## | | ??#"""" """""""""""""""""""""""""""" "## | | ??#"""" ""###### ################"" "## | | ??#"""" ""# ##????????#"" "### | | ??#"""" ""# X"#????????#"" !=!!"#?? | | #?#"""" ""# "" "" ##????????#""!*%!*"#?? | | #"#"""" ""# "" "" X"#??????###""%%==*!#? | | ""#"""" ""# " " #########!#"*[[!!!"## | | #######" "" "" ==%**[[%[ | | #?????#" "" "" [%!%=![[*## | | #######" ""# " " ######### #=!=*!%*"#? | | ""# "" "" ""#??????###"!! ==%"#?? | | ""# "" "" ##????????#"=[ =!= #?? | | ""# !%=[ X"#????????#""%[*! ### | | ""# [! ##????????#""!!%%! ## | | ""###### ################""!%*= "## | | """""""""""""""" """"""""""" =! *##= | | """"""""!""""""" "" """"""" !!%= | | !% *=*=!=*%[%! ! [ ## | | =![! j*%[!=!!= *!=*! =!"# | | %==%![![!!*![* ! !=%=%= !"## | | #""""#" != ! *[*%!j=%==!%= %!= =!=!=%!%!## | | #????#" %*=%!%%==[=%!*!x=%! %![%! %!= "# | | #????#"""""" """"" """""@""""" """"!% !*""" ### | | ##????####### ##########]%###########=###### #?? | | ????????????? ?????#" !!! "### [%! %! ## #?? | | ?????????????? ?????#" "##[=#=*[= # ## #?? | | ??????????????" ????#" "### # #??# #?? | | ???????????????? "???# ! "#?#!# #??# #?? | | ?????????????????????#""""""" #?# ##### # ## #?? | | ?????????????????????##########?# ## ### | | ????????????????????????????????# # """ # ## | | ????????????????????????????????# # "#" # ## | | ????????????????????????????????# # """ #?## | | ????????????????????????????????# # #??# [ | | ????????????????????????????????#########??# *! | | ???????????????????????????????????????????#!! ### | | ???#########################################! ### | | ???# ##"""##"""##"""##"""##"""##"|"# """ | | ???# """"""" ## ""## ""##" "##"""##"" ##" # "" | | ???# """"""" = | | ???# """"""" [%= " | | ???# """"""" !! """ | | ???# """"""" ##"""##"""##""|##"|"##!!$##"" ## #### | | ???# ##"""##"""##"""##"""##"""##"""####??? | | ???####################################?####?????? | | ?????????????????????????????????????????????????? | | ?????????????????????????????????????????????????? | +----------------------------------------------------+ Best States ------------- Heat Dissipation 25 Energy Generation 16 Energy Capacity 290 Matter Stores 300 Matter Capacity 300 Sight Range 16 Terrain Scan Density 10 Armor Coverage 100 Resistance: KI 35 Resistance: TH 35 Resistance: EX 35 Resistance: EM 35 Resistance: I 35 Resistance: S 35 Resistance: P 35 Core Shielding 20 Utility Shielding 33 Evasion (%) 55 Offensive Hacking 20 Authchip Count 1 Item Schematics ----------------- None Robot Schematics ------------------ None Fabricated ------------ Nothing Repaired ---------- Aluminum Leg | 54% | -10/Materials Alien Tech Used ----------------- None Achievements -------------- None Challenges ------------ None Game ------ Seed TargetHardenedDriveblaster Manual? 0 Play Time 01:24:54 Cumulative 20.9 hours Start 2025.06.23 @ 19:02:57 End 2025.06.23 @ 21:09:08 Sessions 1 Manual Loads 0 Difficulty Explorer Special Mode None Game No. 8 Rogue 0 Adventurer 0 Explorer 8 Win Type - Total 1 Types 1/0/0/0/0/0/0/0/0/0 Lore% 22 Gallery% 22 Achievement% 31 Wizard Run 0 Options --------- Layout 1 ASCII 0 Keyboard 0 Movement Mouse Keybinds 0 Fullscreen 1 Font 24/Smallcaps Map View 50x35 Zoom Use 0% Tactical HUD 1 Map Filters NONE Filters NONE Steam 1 RUN: 78ab9573-99ff-4996-9dc6-9e5753b6caa1